{"text_format":"3","workbook":"xlsx","n_sheets":11,"sheets":["Intro","Section 1 - Final outcomes","Section 2 - ART procedures","Section 3 - AI","Section 4 Donor","Section 5 - Surrogacy","Section 6 - Storage of gametes","Section - 7 PGT","Treatment Cycles","Donor Registers","Import and Export"],"not_rendered":{"charts":2,"images":1,"defined_names":7,"comments":8},"read":"whole","date_system":"1900"}

{"sheet":"Intro","index":0,"n_rows":85,"n_cols":12,"rows_kept":85,"hidden":true,"merged":[[19,1,26,1],[44,1,46,1],[57,1,59,1]]}
["ART treatment outcome data is collected from registered ART providers directly by VARTA and by the University of Technology Sydney (UTS)."]
[]
["This report outlines the procedures carried out for registered ART providers that are currently accredited by RTAC under the Assisted Reproductive Treatment Act 2008. Data is provided on a financial year basis ( between 1 July 2015 and 30 June 2016) as required under the Act. "]
[]
["The following dates indicate when the latest updates were provided – pregnancy outcomes for each unit will only have been recorded up to these dates:"]
["• XX/XX/2016 Ballarat IVF"]
["• XX/XX/2016 City Fertility Centre"]
["• XX/XX/2016 City Babies"]
["• XX/XX/2016 Melbourne IVF"]
["• XX/XX/2016 Monash IVF"]
[]
["This report includes all forms of assisted reproductive treatment (ART) cycles and artificial insemination (AI) using either partner sperm or donor sperm. Cycles involving: purely egg or embryo movement; embryo disposal; or cancelled prior to Follicle Stimulating Hormone (FSH) stimulation or prior to thawing the egg or embryo, are not included."]
[]
["Where a woman may have treatment at more than one treatment site, the information is presented per registered ART provider. Elsewhere, details of each treatment site for a registered ART provider are provided. "]
[]
[]
[]
[]
[]
[null,"Insert diagram from  Understanding IVF success rates brochure and mark which tables relate to which part of the process (where applicable)"]
{"$rows_empty":23}
[{"$nulls":3},"Figure 7, Number of patients and treatment cycles per financial year, 2008-09 to 2014-15"]
["The data in the VARTA annual report cannot be used to compare success rates between ART procedures and between treatment sites. In evidence-based clinical practice, the most reliable and strongest evidence to compare the efficacy between ART procedures or to compare the success rates between treatment sites is generated from prospective randomised controlled trials (RCT). Only RCT can ensure that the ‘known’ and ‘unknown’ factors which impact the success rate are evenly distributed between comparison groups. ","Too technical. Align more with copy used in Understanding IVF success rates brochure",null,null,"2008-09","2009-10","2010-11","2011-12","2012-13","2013-14","2014-15","2015-16"]
["The data for VARTA annual report are collected retrospectively. ART clinics in Victoria practice very differently in terms of patient selection and use of laboratory techniques. ‘Known’ factors; such as age of the woman treated; the type of subfertility problem; the length of subfertility; previous pregnancies and live births; the history of pregnancy losses; the number of cycles undergone; and other ‘unknown’ factors are not evenly distributed between treatment sites.",null,null,"Number of patients",9262,9525,9685,10252,10598,11113,11308]
["Therefore, VARTA annual report data only presents number of cycles; type of ART procedures; and number of pregnancies and number of births, not the success rates. Given the differences in ‘known’ and ‘unknown’ factors between treatment sites, it is not correct to calculate the success rate by number of live births over number of cycles and compare between treatment sites. Furthermore, the information on intention to treat is not available in the VARTA data. It is not correct to compare the efficacy between ART procedures since cancelled cycles and ‘known’ and ‘unknown’ factors are not taken into consideration.",null,null,"< 35 years",{"v":36.56877564240985,"d":"36.6"},{"v":35.968503937007874,"d":"36.0"},{"v":36.293236964377904,"d":"36.3"},{"$f":"H50/H46*100","v":{"v":36.04174795161919,"d":"36.0"}},{"$f":"I50/I46*100","v":{"v":36.73334591432346,"d":"36.7"}},{"$f":"J50/J46*100","v":{"v":37.47862863313237,"d":"37.5"}},{"$f":"K50/K46*100","v":{"v":37.58401131941988,"d":"37.6"}}]
[{"$nulls":3},"35-39 years",{"v":38.00475059382423,"d":"38.0"},{"v":37.637795275590555,"d":"37.6"},{"v":36.375838926174495,"d":"36.4"},{"$f":"H51/H46*100","v":{"v":36.65626219274288,"d":"36.7"}},{"$f":"I51/I46*100","v":{"v":35.667107001321,"d":"35.7"}},{"$f":"J51/J46*100","v":{"v":35.5799514082606,"d":"35.6"}},{"$f":"K51/K46*100","v":{"v":35.68270251149628,"d":"35.7"}}]
["Data outcomes table of content:",null,null,"≥ 40 years",{"v":25.426473763765927,"d":"25.4"},{"v":26.393700787401574,"d":"26.4"},{"v":27.3309241094476,"d":"27.3"},{"$f":"H52/H46*100","v":{"v":27.301989855637927,"d":"27.3"}},{"$f":"I52/I46*100","v":{"v":27.599547084355542,"d":"27.6"}},{"$f":"J52/J46*100","v":{"v":26.94141995860704,"d":"26.9"}},{"$f":"K52/K46*100","v":{"v":26.733286169083836,"d":"26.7"}}]
["Section 1 - Final outcomes for treatment cycles commenced in 2014-15 financial year",null,null,"< 35 years",3387,3426,3515,3695,3893,4165,4250]
["Section 2 - Outcomes from treatment cycles, 2015–16 financial year",null,null,"35-39 years",3520,3585,3523,3758,3780,3954,4035]
["Section 3 - Multiple pregnancies, 2015-16 financial year",null,null,"≥ 40 years",2355,2514,2647,2799,2925,2994,3023]
["Section 4 - Donor treatment, 2015–16 financial year"]
["Section 5 - Surrogacy, 2015-16 financial year",null,null,"Number of cycles",17687,18530,18057,{"$f":"SUM(H56:H61)","v":19361},{"$f":"SUM(I56:I61)","v":19847},20632,20569]
["Section 6 - Storage of gametes, 2015-16 financial year"]
["Section 7 -  Preimplantation genetic diagnosis and screening, 2015-16 financial year",null,null,"Fresh",11068,10854,10655,11489,11455,11889,11772]
[{"$nulls":3},"Thaw",6425,6364,6417,6916,7212,7255,7115]
[null,"Diagrams to move under Focus 4 Monitoring> Clinic data trends"]
[{"$nulls":3},"AI",null,1133,728,611,842,972,1088]
[{"$nulls":3},"DI",136,167,214,275,283,471,555]
[{"$nulls":3},"GIFT/Surr",58,12,43,70,55,45,39]
[]
[]
[{"$nulls":3},"Note:"]
[{"$nulls":3},"AI was not reported for 2008-09"]
[{"$nulls":3},"2008-09, 2009-10, 2010-11, 2011-12, 2012-13, 2013-14, 2014-15 data were from the final outcome data"]
[{"$nulls":3},"2015-16 data were from the treatment data "]
[]
[]
[]
[]
[]
[]
["Final 2014-15 pregnancy outcomes data was updated in September 2015. There were XX% (XX of XXXX pregnancies) of 2014-15 data with unknown outcomes.","Report under Focus 4 Monitoring> Clinic data trends"]
[]
["Legend to appear as required on each relevant section"]
[]
["Legend  (for full glossary, refer to page XX)"]
["Birth: A birth event - the delivery of a baby or babies."]
["Live birth: birth of a living baby or babies (multiple births are classified as a single live birth)"]
["Babies born: includes liveborn and still born"]
["Liveborn babies: A baby that is born alive"]
["Age at the first treatment: Age is based on the cycle date -either the first date where FSH/stimulation drug is administrated, or the date of Last Menstrual Period (LMP) for unstimulated cycles (including natural fresh cycles and thaw cycles). "]
["Clinical pregnancy: A pregnancy verified by ultrasound at six-seven weeks gestation. A clinical pregnancy does not guarantee the birth of a baby, as miscarriages occur. Women can have more than 1 clinical pregnancy in the financial year"]
["Thawed: cryopreserved/frozen eggs, sperm or embryos must be thawed prior to transfer"]

{"sheet":"Section 1 - Final outcomes","index":1,"n_rows":277,"n_cols":11,"rows_kept":277,"merged":[[3,0,3,5],[4,0,4,5],[4,6,4,7],[9,0,10,0],[9,1,9,4],[9,5,10,5],[9,6,10,6],[9,7,10,7],[9,8,10,8],[9,9,10,9],[31,0,31,5],[35,0,36,0],[35,1,36,1],[35,2,36,2],[35,3,35,6],[35,7,36,7],[35,8,36,8],[35,9,36,9],[35,10,36,10],[61,1,61,5],[61,6,61,8],[63,1,63,5],[84,1,84,5],[92,1,92,5],[94,1,94,5],[115,1,115,5],[124,1,124,4],[145,1,145,4],[154,1,154,4],[175,1,175,4],[184,1,184,5],[184,6,184,10],[237,0,237,6],[239,0,239,8],[250,0,250,8],[261,0,261,8]]}
["SECTION 1"]
["Final outcomes for treatment cycles commenced in 2019-20 financial year"]
[]
["This section includes a final outcome of treatment procedures undertaken in 2019-20. These final figures were not available at the time of the production of the 2019 Annual Report. Similarly, this year, a full report on treatment outcomes will not be possible until the 2021 Annual Report. As pregnancies are ongoing, some outcomes are not known at the time of this report going to print."]
[]
["Overview "]
[]
["Table 1.1 Number of women treated, 2019-20 financial year"]
[]
["Treatment site","No. of women treated",{"$nulls":3},"No. of cycles included","No. of women with fresh embryos transferred","No. of women with thawed embryos transferred","No. of women with AI using partner sperm","No. of women with AI using donor sperm"]
[null,"< 35","35-39","≥ 40","All"]
["Adora Fertility, Greensborough",495,408,231,1134,2179,590,493,20,0]
["Ballarat IVF, Ballarat",154,100,44,298,531,48,169,16,14]
["City Babies, Richmond",73,40,21,134,237,0,0,134,0]
["City Fertility Centre, Bundoora",97,79,39,215,449,45,124,7,11]
["City Fertility Centre, Melbourne",226,251,132,609,1193,175,296,27,70]
["Genea, Melbourne",44,47,33,124,251,32,51,3,2]
["Melbourne IVF, East Melbourne",1154,1512,824,3490,6592,1259,1520,180,152]
["Melbourne IVF, Mt Waverley",127,124,55,306,556,120,150,15,21]
["Monash IVF, Bendigo",43,27,18,88,130,38,36,5,1]
["Monash IVF, Clayton (Monash IVF Monash Surgical Private Hospital)",640,711,505,1856,3136,455,890,83,36]
["Monash IVF, Geelong",135,100,60,295,509,96,150,19,8]
["Monash IVF, Mildura",27,12,7,46,63,25,16,2,3]
["Monash IVF, Richmond (Monash IVF Epworth Hospital)",265,366,237,868,1310,163,405,35,36]
["Monash IVF, Sale (Central Wellington Health Services)",24,14,16,54,72,25,16,0,0]
["Monash IVF, Sunshine (Western Day Surgery)",95,77,51,223,321,103,58,1,0]
["Newlife IVF, Box Hill",144,145,75,364,706,112,184,0,4]
["Number 1 Fertility, East Melbourne",476,707,344,1527,2741,296,616,73,1]
["Number 1 Fertility, Geelong",38,47,24,109,140,21,23,2,0]
["Reproductive Services, Royal Women Hospital (Melbourne IVF)",590,418,293,1301,2393,622,585,7,10]
["Aggregated total",{"$f":"SUM(B12:B30)","v":4847},{"$f":"SUM(C12:C30)","v":5185},3009,13041,23509,4225,5782,629,369]
["AI: artificial insemination."]
[]
[]
["Table 1.2 Number of women treated and pregnancy and birth outcomes, 2019-20 financial year"]
["Treatment site","No. of women treated","Clinical pregnancies ","No. of births",{"$nulls":3},"No. of live births","No. of babies born","No. of\nliveborn\nbabies","Pregnancy\noutcome\nunknown"]
[{"$nulls":3},"No. of singletons","No. of sets\nof twins","No. of sets\nof higher order multiples","All"]
["Adora Fertility, Greensborough",1134,476,369,10,0,379,375,389,385,1]
["Ballarat IVF, Ballarat",298,111,88,4,0,92,90,96,94,1]
["City Babies, Richmond",134,26,22,1,0,23,23,24,24,0]
["City Fertility Centre, Bundoora",215,68,58,1,0,59,59,60,60,0]
["City Fertility Centre, Melbourne",609,252,187,12,0,199,199,211,211,0]
["Genea, Melbourne",124,39,25,0,0,25,25,25,25,0]
["Melbourne IVF, East Melbourne",3490,1590,1183,49,1,1233,1214,1284,1264,10]
["Melbourne IVF, Mt Waverley",306,130,101,3,0,104,102,107,105,1]
["Monash IVF, Bendigo",88,31,25,3,0,28,28,31,31,0]
["Monash IVF, Clayton (Monash IVF Monash Surgical Private Hospital)",1856,625,487,27,0,514,508,541,535,0]
["Monash IVF, Geelong",295,121,96,6,0,102,102,108,108,0]
["Monash IVF, Mildura",46,17,13,2,0,15,14,17,15,0]
["Monash IVF, Richmond (Monash IVF Epworth Hospital)",868,278,215,8,1,224,221,234,230,0]
["Monash IVF, Sale (Central Wellington Health Services)",54,10,6,3,0,9,9,12,12,0]
["Monash IVF, Sunshine (Western Day Surgery)",223,58,43,2,0,45,45,47,47,0]
["Newlife IVF, Box Hill",364,138,106,7,0,113,112,120,119,0]
["Number 1 Fertility, East Melbourne",1527,487,391,6,0,397,394,403,400,0]
["Number 1 Fertility, Geelong",109,19,18,0,0,18,17,18,17,1]
["Reproductive Services, Royal Women Hospital (Melbourne IVF)",1301,481,373,10,1,384,375,396,386,7]
["Aggregated total",{"$f":"SUM(B38:B56)","v":13041},4957,3806,154,3,3963,3912,4123,4068,21]
[]
[]
["Table 1.3a Fresh embryo transfer cycles and pregnancy outcomes, 2019-20 financial year"]
["This data includes fresh embryos formed from thawed eggs"]
[null,"Women using embryos derived from their own, their partner's or donated eggs"]
[null,"No. of cycles with fresh embryo transferred","% of single embryo transfer","No. of clinical pregnancies","No. of live births","No. of liveborn babies"]
["Treatment site","All ages by treatment site"]
["Adora Fertility, Greensborough",764,{"v":88.61256408691406,"d":"88.6"},186,148,153]
["Ballarat IVF, Ballarat",48,{"v":100,"d":"100.0"},16,11,11]
["City Fertility Centre, Bundoora",50,{"v":94,"d":"94.0"},7,7,7]
["City Fertility Centre, Melbourne",220,{"v":81.81818389892578,"d":"81.8"},51,32,32]
["Genea, Melbourne",40,97.5,13,7,7]
["Melbourne IVF, East Melbourne",1533,{"v":92.49836730957031,"d":"92.5"},599,445,463]
["Melbourne IVF, Mt Waverley",137,{"v":97.81021881103516,"d":"97.8"},46,37,37]
["Monash IVF, Bendigo",41,{"v":97.56097412109375,"d":"97.6"},15,14,16]
["Monash IVF, Clayton (Monash IVF Monash Surgical Private Hospital)",522,{"v":77.0114974975586,"d":"77.0"},128,111,120]
["Monash IVF, Geelong",107,{"v":96.26168060302734,"d":"96.3"},31,23,25]
["Monash IVF, Mildura",26,{"v":96.15384674072266,"d":"96.2"},7,5,5]
["Monash IVF, Richmond (Monash IVF Epworth Hospital)",182,{"v":88.46154022216797,"d":"88.5"},57,44,46]
["Monash IVF, Sale (Central Wellington Health Services)",29,{"v":55.17241287231445,"d":"55.2"},9,8,11]
["Monash IVF, Sunshine (Western Day Surgery)",119,{"v":82.35294342041016,"d":"82.4"},35,25,27]
["Newlife IVF, Box Hill",126,{"v":98.4126968383789,"d":"98.4"},46,37,38]
["Number 1 Fertility, East Melbourne",335,{"v":100,"d":"100.0"},127,101,103]
["Number 1 Fertility, Geelong",21,{"v":100,"d":"100.0"},8,8,8]
["Reproductive Services, Royal Women Hospital (Melbourne IVF)",747,{"v":97.45648956298828,"d":"97.5"},223,172,179]
[]
["Aggregated total",{"$f":"SUM(B65:B83)","v":5047},{"v":91.06399536132812,"d":"91.1"},{"$f":"SUM(D65:D83)","v":1604},1235,1288]
["Age group","All treatment sites by age group"]
["<35",1748,{"v":95.42333984375,"d":"95.4"},722,613,644]
["35-39",1938,{"v":94.2208480834961,"d":"94.2"},632,462,477]
[">=40",1361,{"v":80.9698715209961,"d":"81.0"},250,160,167]
["Aggregated total",{"$f":"SUM(B86:B88)","v":5047},{"v":91.06399536132812,"d":"91.1"},{"$f":"SUM(D86:D88)","v":1604},1235,1288]
[]
[]
["Table 1.3b Thawed embryo transfer cycles and pregnancy outcomes, 2019-20 financial year"]
[null,"Women using own eggs"]
[null,"No. of cycles with thawed embryos transferred","% of single embryo transfer","No. of clinical pregnancies","No. of live births","No. of liveborn babies"]
["Treatment site","All ages by treatment site"]
["Adora Fertility, Greensborough",739,{"v":96.07577514648438,"d":"96.1"},284,222,227]
["Ballarat IVF, Ballarat",210,{"v":99.52381134033203,"d":"99.5"},84,71,75]
["City Fertility Centre, Bundoora",184,{"v":94.56521606445312,"d":"94.6"},58,49,50]
["City Fertility Centre, Melbourne",374,{"v":86.36363983154297,"d":"86.4"},159,129,140]
["Genea, Melbourne",72,{"v":100,"d":"100.0"},24,16,16]
["Melbourne IVF, East Melbourne",2020,{"v":92.57425689697266,"d":"92.6"},869,677,702]
["Melbourne IVF, Mt Waverley",222,{"v":95.49549865722656,"d":"95.5"},74,57,59]
["Monash IVF, Bendigo",35,{"v":100,"d":"100.0"},12,11,11]
["Monash IVF, Clayton (Monash IVF Monash Surgical Private Hospital)",1076,{"v":94.14498138427734,"d":"94.1"},447,359,375]
["Monash IVF, Geelong",201,{"v":91.54228973388672,"d":"91.5"},78,68,72]
["Monash IVF, Mildura",17,{"v":82.35294342041016,"d":"82.4"},8,8,9]
["Monash IVF, Richmond (Monash IVF Epworth Hospital)",459,{"v":92.59259033203125,"d":"92.6"},198,160,167]
["Monash IVF, Sale (Central Wellington Health Services)",18,{"v":72.22222137451172,"d":"72.2"},1,1,1]
["Monash IVF, Sunshine (Western Day Surgery)",62,{"v":88.70967864990234,"d":"88.7"},22,19,19]
["Newlife IVF, Box Hill",266,{"v":94.7368392944336,"d":"94.7"},92,75,81]
["Number 1 Fertility, East Melbourne",790,{"v":100,"d":"100.0"},335,272,275]
["Number 1 Fertility, Geelong",28,{"v":100,"d":"100.0"},10,8,8]
["Reproductive Services, Royal Women Hospital (Melbourne IVF)",870,{"v":98.27586364746094,"d":"98.3"},250,195,199]
[]
["Aggregated total",{"$f":"SUM(B96:B114)","v":7643},{"v":94.64869689941406,"d":"94.6"},{"$f":"SUM(D96:D114)","v":3005},2397,2486]
["Age group","All treatment sites by age group"]
["<35",3028,{"v":94.91413116455078,"d":"94.9"},1315,1098,1142]
["35-39",3164,{"v":95.63843536376953,"d":"95.6"},1272,1010,1044]
[">=40",1451,{"v":91.93659210205078,"d":"91.9"},418,289,300]
["Aggregated total",{"$f":"SUM(B117:B119)","v":7643},{"v":94.64869689941406,"d":"94.6"},{"$f":"SUM(D117:D119)","v":3005},2397,2486]
[]
[]
["Table 1.3c Artificial insemination (AI) cycles using partner sperm and pregnancy outcomes, 2019-20 financial year"]
[null,"No. of cycles with AI performed","No. of clinical pregnancies","No. of live births","No. of liveborn babies"]
["Treatment site","All ages by treatment site"]
["Adora Fertility, Greensborough",26,6,5,5]
["Ballarat IVF, Ballarat",20,0,0,0]
["City Babies, Richmond",237,26,23,24]
["City Fertility Centre, Bundoora",10,0,0,0]
["City Fertility Centre, Melbourne",35,5,3,3]
["Genea, Melbourne",3,0,0,0]
["Melbourne IVF, East Melbourne",282,31,25,28]
["Melbourne IVF, Mt Waverley",19,4,4,4]
["Monash IVF, Bendigo",7,0,0,0]
["Monash IVF, Clayton (Monash IVF Monash Surgical Private Hospital)",125,11,11,12]
["Monash IVF, Geelong",23,4,4,4]
["Monash IVF, Mildura",4,1,0,0]
["Monash IVF, Richmond (Monash IVF Epworth Hospital)",45,5,4,4]
["Monash IVF, Sunshine (Western Day Surgery)",2,0,0,0]
["Number 1 Fertility, East Melbourne",88,10,7,8]
["Number 1 Fertility, Geelong",3,0,0,0]
["Reproductive Services, Royal Women Hospital (Melbourne IVF)",10,1,1,1]
[]
[]
["Aggregated total",{"$f":"SUM(B126:B144)","v":939},{"$f":"SUM(C126:C144)","v":104},87,93]
["Age group","All treatment sites by age group"]
["<35",451,59,52,57]
["35-39",341,35,28,29]
[">=40",147,10,7,7]
["Aggregated total",{"$f":"SUM(B147:B149)","v":939},{"$f":"SUM(C147:C149)","v":104},87,93]
[]
[]
["Table 1.3d Artificial insemination (AI) cycles using donor sperm and pregnancy outcomes, 2019-20 financial year"]
[null,"No. of cycles with AI performed","No. of clinical pregnancies","No. of live births","No. of liveborn babies"]
["Treatment site","All ages by treatment site"]
["Ballarat IVF, Ballarat",15,0,0,0]
["City Fertility Centre, Bundoora",17,3,3,3]
["City Fertility Centre, Melbourne",111,13,12,12]
["Genea, Melbourne",4,0,0,0]
["Melbourne IVF, East Melbourne",248,41,27,30]
["Melbourne IVF, Mt Waverley",38,5,3,4]
["Monash IVF, Bendigo",2,1,1,2]
["Monash IVF, Clayton (Monash IVF Monash Surgical Private Hospital)",53,7,5,5]
["Monash IVF, Geelong",11,3,2,2]
["Monash IVF, Mildura",4,1,1,1]
["Monash IVF, Richmond (Monash IVF Epworth Hospital)",57,3,2,2]
["Newlife IVF, Box Hill",13,0,0,0]
["Number 1 Fertility, East Melbourne",3,1,0,0]
["Reproductive Services, Royal Women Hospital (Melbourne IVF)",15,3,3,3]
[]
[]
[]
[]
[]
["Aggregated total",{"$f":"SUM(B156:B174)","v":591},{"$f":"SUM(C156:C174)","v":81},59,64]
["Age group","All treatment sites by age group"]
["<35",261,41,33,34]
["35-39",291,38,25,29]
[">=40",39,2,1,1]
["Aggregated total",{"$f":"SUM(B177:B179)","v":591},{"$f":"SUM(C177:C179)","v":81},59,64]
[]
[]
[]
["Table 1.4 Treatment using thawed eggs and pregnancy outcomes, 2019-20 financial year"]
[null,"Women using own eggs",{"$nulls":4},"Women using donor/partner eggs*"]
["Treatment site","No. of cycles with eggs thawed","No. of cycles with embryos transferred","No. of clinical pregnancies","No. of live births","No. of liveborn babies","No. of cycles with eggs thawed","No. of cycles with embryos transferred","No. of clinical pregnancies","No. of live births","No. of liveborn babies"]
["Adora Fertility, Greensborough",2,1,0,0,0,0,0,0,0,0]
["Ballarat IVF, Ballarat",2,0,0,0,0,0,0,0,0,0]
["City Fertility Centre, Bundoora",4,1,1,1,1,0,0,0,0,0]
["City Fertility Centre, Melbourne",3,2,0,0,0,2,1,1,1,1]
["Genea, Melbourne",1,1,0,0,0,0,0,0,0,0]
["Melbourne IVF, East Melbourne",87,63,32,21,22,3,2,1,1,1]
["Melbourne IVF, Mt Waverley",1,1,0,0,0,0,0,0,0,0]
["Monash IVF, Bendigo",0,0,0,0,0,1,1,1,1,1]
["Monash IVF, Clayton (Monash IVF Monash Surgical Private Hospital)",48,21,3,3,3,6,3,1,1,1]
["Monash IVF, Geelong",2,1,0,0,0,0,0,0,0,0]
["Monash IVF, Richmond (Monash IVF Epworth Hospital)",25,11,4,3,3,22,19,11,11,11]
["Monash IVF, Sale (Central Wellington Health Services)",1,0,0,0,0,0,0,0,0,0]
["Monash IVF, Sunshine (Western Day Surgery)",6,6,2,0,0,1,0,0,0,0]
["Newlife IVF, Box Hill",3,2,2,1,1,1,0,0,0,0]
["Number 1 Fertility, East Melbourne",24,11,4,3,3,0,0,0,0,0]
["Reproductive Services, Royal Women Hospital (Melbourne IVF)",10,9,3,3,3,0,0,0,0,0]
[]
[]
[]
["Aggregated total",{"$f":"SUM(B187:B205)","v":219},{"$f":"SUM(C187:C205)","v":130},51,35,36,36,26,15,15,15]
["* Donor eggs include those imported from interstate or overseas."]
[]
["Table 1.5 Surrogacy cycles and pregnancy outcomes, 2019-20 financial year"]
["This table includes cycles where embryo(s) was transferred to a surrogate woman. "]
["Treatment site","No. of surrogate women","No. of cycles with embryos transferred*","% of single embryo transfer**","No. of clinical pregnancies","No. of live births","No. of liveborn babies"]
["Genea, Melbourne",1,1,{"v":100,"d":"100.0"},0,0,0]
["Melbourne IVF, East Melbourne",11,14,{"v":100,"d":"100.0"},6,5,5]
["Monash IVF, Bendigo",1,2,{"v":100,"d":"100.0"},0,0,0]
["Monash IVF, Clayton (Monash IVF Monash Surgical Private Hospital)",5,6,{"v":100,"d":"100.0"},5,3,3]
["Monash IVF, Geelong",1,3,{"v":100,"d":"100.0"},1,1,1]
["Monash IVF, Richmond (Monash IVF Epworth Hospital)",4,5,{"v":100,"d":"100.0"},1,1,1]
["Monash IVF, Sunshine (Western Day Surgery)",1,1,{"v":100,"d":"100.0"},0,0,0]
["Newlife IVF, Box Hill",1,1,{"v":100,"d":"100.0"},0,0,0]
["Number 1 Fertility, East Melbourne",4,6,{"v":100,"d":"100.0"},1,1,1]
["Number 1 Fertility, Geelong",1,1,{"v":100,"d":"100.0"},1,1,1]
{"$rows_empty":9}
["Aggregated total",{"$f":"SUM(B212:B230)","v":30},{"$f":"SUM(C212:C230)","v":40},{"v":100,"d":"100.0"},{"$f":"SUM(E212:E230)","v":15},{"$f":"SUM(F212:F230)","v":12},{"$f":"SUM(G212:G230)","v":12}]
["**see noe page x"]
[]
["There was 1 GIFT cycle and 1 ZIFT cycle in FY2020"]
[]
[]
["Table 1.6 Outcome for Preimplantation testing (PGT), 2019-20 financial year"]
["PGT-M is used for patients with a known genetic risk. PGT-A is used when for the detection of numerical chromosome abnormalities.\nPGD IVF/ICSI and thaw cycles may be initiated with the aim of freezing all embryos (no embryos transferred)."]
["Registered ART provider (all sites)","No. of women in treatment","No. of embryos\ntested*","No. of embryos genetically-suitable\nfor transfer","No. of women in treatment**","No. of genetically-suitable\nembryos transferred","No. of clinical pregnancies","No. of live births","No. of liveborn babies"]
["PGT-M"]
["Adora Fertility ","n/a","n/a","n/a","n/a","n/a","n/a","n/a","n/a"]
["Ballarat IVF","n/a","n/a","n/a",1,1,1,1,1]
["City Babies","n/a","n/a","n/a","n/a","n/a","n/a","n/a","n/a"]
["City Fertility Centre",2,3,2,1,1,0,0,0]
["Genea",2,6,2,2,2,0,0,0]
["Melbourne IVF, including Reproductive Services, RWH",128,748,334,117,166,87,75,77]
["Monash IVF",61,310,108,52,65,28,23,24]
["Newlife IVF",5,30,7,2,3,1,1,1]
["Number 1 Fertility",17,81,20,10,11,7,6,6]
["Aggregated total",{"$f":"SUM(B241:B249)","v":215},{"$f":"SUM(C241:C249)","v":1178},473,185,249,124,106,109]
["PGT-A"]
["Adora Fertility ","n/a","n/a","n/a","n/a","n/a","n/a","n/a","n/a"]
["Ballarat IVF","n/a","n/a","n/a",0,0,0,0,0]
["City Babies","n/a","n/a","n/a","n/a","n/a","n/a","n/a","n/a"]
["City Fertility Centre",41,139,64,36,58,13,12,12]
["Genea",35,157,75,25,36,14,7,7]
["Melbourne IVF, including Reproductive Services, RWH",473,1853,898,392,515,260,215,222]
["Monash IVF",220,568,313,239,279,132,113,115]
["Newlife IVF",90,377,171,42,61,18,13,14]
["Number 1 Fertility",388,1266,576,251,295,157,137,137]
["Aggregated total",1247,4360,2097,985,1244,594,497,507]
["Non-invasive pre-implantation testing for aneuploidy (NIPGT***)"]
["Adora Fertility ","n/a","n/a","n/a","n/a","n/a","n/a","n/a","n/a"]
["Ballarat IVF","n/a","n/a","n/a",0,0,0,0,0]
["City Babies","n/a","n/a","n/a","n/a","n/a","n/a","n/a","n/a"]
["City Fertility Centre","n/a","n/a","n/a","n/a","n/a","n/a","n/a","n/a"]
["Genea","n/a","n/a","n/a","n/a","n/a","n/a","n/a","n/a"]
["Melbourne IVF, including Reproductive Services, RWH","n/a","n/a","n/a","n/a","n/a","n/a","n/a","n/a"]
["Monash IVF",355,977,284,91,105,39,33,33]
["Newlife IVF",1,3,2,1,2,0,0,0]
["Number 1 Fertility","n/a","n/a","n/a","n/a","n/a","n/a","n/a","n/a"]
["Aggregated total",356,980,286,92,107,39,33,33]
["PGT-M: preimplantation genetic testing for single gene disorders; PGT-A: preimplantation genetic screening for aneuploidy"]
["NIPGT: non-invasive preimplantation genetic testing for aneuploidy"]
["* Either fresh embryos or thawed frozen embryos may be tested. Some patients will have some fresh and thawed frozen embryos tested."]
["** Women may have treatment using embryos tested and stored in a prior year "]
["*** Non-invasive PGT. Note that some women will have some embryos biopsied and some tested by NI-PGT"]

{"sheet":"Section 2 - ART procedures","index":2,"n_rows":402,"n_cols":13,"rows_kept":402,"merged":[[7,0,8,0],[7,1,7,4],[7,5,8,5],[7,6,8,6],[7,7,8,7],[7,8,8,8],[7,9,8,9],[7,10,8,10],[7,11,8,11],[7,12,8,12],[29,0,29,9],[36,0,36,7],[57,0,57,7],[78,0,78,7],[99,0,99,7],[127,1,127,4],[148,1,148,4],[159,1,159,5],[180,1,180,5],[190,0,190,4],[192,1,192,4],[213,1,213,4],[218,0,218,4],[220,1,220,4],[241,1,241,4],[252,0,252,5],[254,1,254,5],[275,1,275,5],[280,0,280,5],[282,1,282,5],[303,1,303,5],[316,1,316,4],[337,1,337,4],[373,1,373,7],[394,1,394,7]]}
["SECTION 2"]
["ART procedures, 2020-21 financial year"]
["This section provides details of ART treatment and clinical pregnancies for the 2020-21 financial year. As pregnancies are ongoing, some outcomes are not known at the time of this report going to print."]
[]
["Overview "]
[]
["Table 2.1 Number of women treated, 2020-21 financial year"]
["Treatment site","No. of women treated",{"$nulls":3},"No. of cycles included","No. of women with FSH stimulation","No. of women with egg retrievals","No. of women with fresh/thawed eggs and attempted IVF/ICSI fertilisation ","No. of women with embryos thawed","No. of women with fresh/thawed embryos transferred","No. of women with AI using partner sperm","No. of women with AI using donor sperm"]
[null,"< 35","35-39","≥ 40","All"]
["Adora Fertility, Greensborough",436,404,209,1049,2058,858,796,766,488,879,0,0]
["Ballarat IVF, Ballarat",201,130,58,389,871,268,252,232,248,267,8,28]
["City Babies, Richmond",63,41,16,120,249,116,0,0,0,0,120,0]
["City Fertility Centre, Bundoora",109,74,44,227,541,198,145,137,127,146,11,15]
["City Fertility Centre, Melbourne",264,262,136,662,1133,467,394,334,278,398,29,106]
["Genea, Melbourne",68,66,48,182,393,160,143,124,81,126,6,2]
["Melbourne IVF, East Melbourne",1416,1693,914,4023,8022,3339,2938,2471,1839,2674,272,163]
["Melbourne IVF, Mt Waverley",152,160,79,391,719,324,290,252,179,282,14,13]
["Monash IVF, Bendigo",72,44,16,132,225,90,72,66,70,99,8,3]
["Monash IVF, Clayton (Monash IVF Monash Surgical Private Hospital)",755,856,597,2208,3923,1637,1525,1334,985,1444,109,31]
["Monash IVF, Geelong",179,162,92,433,857,323,287,261,249,318,36,11]
["Monash IVF, Mildura",42,25,9,76,125,62,47,44,31,51,9,1]
["Monash IVF, Richmond (Monash IVF Epworth Hospital)",324,380,302,1006,1644,668,551,475,473,622,70,20]
["Monash IVF, Sale (Central Wellington Health Services)",41,24,15,80,117,64,59,47,20,52,0,0]
["Monash IVF, Sunshine (Western Day Surgery)",115,96,67,278,416,238,219,194,65,170,1,0]
["Newlife IVF, Box Hill",285,327,198,810,1650,684,754,559,372,545,0,20]
["Number 1 Fertility, East Melbourne",713,1005,496,2214,4519,1887,1715,1275,856,1248,206,6]
["Number 1 Fertility, Geelong",0,6,2,8,8,8,8,5,0,0,0,0]
["Reproductive Services, Royal Women Hospital (Melbourne IVF)",560,436,306,1302,2290,1062,991,897,533,946,13,1]
["Aggregated total",{"$f":"SUM(B10:B28)","v":5795},{"$f":"SUM(C10:C28)","v":6191},3604,15590,29760,12453,11186,9473,6894,10267,912,420]
["FSH: Follicle stimulating hormone. IVF: in vitro fertilisation. ICSI: intracytoplasmic sperm injection. AI: artificial insemination."]
[]
[]
["Egg retrieval cycles"]
[]
["Table 2.2 Number of egg retrieval cycles, 2020-21 financial year"]
["Treatment site","No. of egg retrieval cycles","No. of egg retrievals with eggs collected","No. of eggs collected ","No. of cycles with eggs  frozen","No. of eggs  frozen","No. eggs collected per egg retrieval cycle","No. of eggs frozen per egg retrieval cycle"]
["< 35"]
["Adora Fertility, Greensborough",424,421,4826,8,63,11,0]
["Ballarat IVF, Ballarat",192,188,2211,14,136,12,1]
["City Fertility Centre, Bundoora",90,88,1474,4,52,16,1]
["City Fertility Centre, Melbourne",160,159,2000,9,65,13,0]
["Genea, Melbourne",81,79,836,16,87,10,1]
["Melbourne IVF, East Melbourne",1273,1261,17906,261,2998,14,2]
["Melbourne IVF, Mt Waverley",143,140,1893,17,159,13,1]
["Monash IVF, Bendigo",51,51,652,5,41,13,1]
["Monash IVF, Clayton (Monash IVF Monash Surgical Private Hospital)",599,598,8131,90,908,14,2]
["Monash IVF, Geelong",124,122,1830,11,111,15,1]
["Monash IVF, Mildura",29,29,255,1,11,9,0]
["Monash IVF, Richmond (Monash IVF Epworth Hospital)",206,204,2566,45,442,12,2]
["Monash IVF, Sale (Central Wellington Health Services)",34,33,370,3,23,11,1]
["Monash IVF, Sunshine (Western Day Surgery)",111,110,1303,10,85,12,1]
["Newlife IVF, Box Hill",499,304,4406,38,396,9,1]
["Number 1 Fertility, East Melbourne",739,735,10224,181,1715,14,2]
["Reproductive Services, Royal Women Hospital (Melbourne IVF)",502,497,5184,73,723,10,1]
[]
[]
["Aggregated total",{"$f":"SUM(B38:B56)","v":5257},{"$f":"SUM(C38:C56)","v":5019},66067,786,8015,208,18]
["35-39"]
["Adora Fertility, Greensborough",442,434,3611,4,28,8,0]
["Ballarat IVF, Ballarat",132,125,1058,11,92,8,1]
["City Fertility Centre, Bundoora",61,60,626,1,7,10,0]
["City Fertility Centre, Melbourne",215,211,2012,13,113,9,1]
["Genea, Melbourne",75,73,684,14,103,9,1]
["Melbourne IVF, East Melbourne",1711,1688,19141,302,2994,11,2]
["Melbourne IVF, Mt Waverley",159,155,1619,17,187,10,1]
["Monash IVF, Bendigo",26,26,304,3,40,12,2]
["Monash IVF, Clayton (Monash IVF Monash Surgical Private Hospital)",814,805,8194,95,863,10,1]
["Monash IVF, Geelong",132,132,1434,6,77,11,1]
["Monash IVF, Mildura",21,21,182,0,0,9,0]
["Monash IVF, Richmond (Monash IVF Epworth Hospital)",274,273,2838,66,541,10,2]
["Monash IVF, Sale (Central Wellington Health Services)",28,27,227,12,94,8,3]
["Monash IVF, Sunshine (Western Day Surgery)",104,104,891,14,105,9,1]
["Newlife IVF, Box Hill",604,379,4396,57,525,7,1]
["Number 1 Fertility, East Melbourne",1200,1188,13925,383,3508,12,3]
["Number 1 Fertility, Geelong",6,6,45,3,13,8,2]
["Reproductive Services, Royal Women Hospital (Melbourne IVF)",423,413,3397,33,221,8,1]
[]
["Aggregated total",{"$f":"SUM(B59:B77)","v":6427},{"$f":"SUM(C59:C77)","v":6120},64584,1034,9511,169,23]
["≥ 40"]
["Adora Fertility, Greensborough",289,279,1660,2,17,6,0]
["Ballarat IVF, Ballarat",41,39,293,1,6,7,0]
["City Fertility Centre, Bundoora",44,42,310,0,0,7,0]
["City Fertility Centre, Melbourne",120,116,869,3,14,7,0]
["Genea, Melbourne",60,59,413,0,0,7,0]
["Melbourne IVF, East Melbourne",1163,1121,8468,69,456,7,0]
["Melbourne IVF, Mt Waverley",84,81,621,4,23,7,0]
["Monash IVF, Bendigo",7,7,55,0,0,8,0]
["Monash IVF, Clayton (Monash IVF Monash Surgical Private Hospital)",649,630,5265,30,207,8,0]
["Monash IVF, Geelong",98,95,756,2,6,8,0]
["Monash IVF, Mildura",8,8,41,0,0,5,0]
["Monash IVF, Richmond (Monash IVF Epworth Hospital)",234,230,1923,32,209,8,1]
["Monash IVF, Sale (Central Wellington Health Services)",15,15,136,0,0,9,0]
["Monash IVF, Sunshine (Western Day Surgery)",67,63,476,6,28,7,0]
["Newlife IVF, Box Hill",361,277,2455,22,122,7,0]
["Number 1 Fertility, East Melbourne",686,670,5692,71,515,8,1]
["Number 1 Fertility, Geelong",2,2,22,0,0,11,0]
["Reproductive Services, Royal Women Hospital (Melbourne IVF)",359,344,1895,13,90,5,0]
[]
["Aggregated total",{"$f":"SUM(B80:B98)","v":4287},{"$f":"SUM(C80:C98)","v":4078},31350,255,1693,132,2]
["All"]
["Adora Fertility, Greensborough",1155,1134,10097,14,108,9,0]
["Ballarat IVF, Ballarat",365,352,3562,26,234,10,1]
["City Fertility Centre, Bundoora",195,190,2410,5,59,12,0]
["City Fertility Centre, Melbourne",495,486,4881,25,192,10,0]
["Genea, Melbourne",216,211,1933,30,190,9,1]
["Melbourne IVF, East Melbourne",4147,4070,45515,632,6448,11,2]
["Melbourne IVF, Mt Waverley",386,376,4133,38,369,11,1]
["Monash IVF, Bendigo",84,84,1011,8,81,12,1]
["Monash IVF, Clayton (Monash IVF Monash Surgical Private Hospital)",2062,2033,21590,215,1978,10,1]
["Monash IVF, Geelong",354,349,4020,19,194,11,1]
["Monash IVF, Mildura",58,58,478,1,11,8,0]
["Monash IVF, Richmond (Monash IVF Epworth Hospital)",714,707,7327,143,1192,10,2]
["Monash IVF, Sale (Central Wellington Health Services)",77,75,733,15,117,10,2]
["Monash IVF, Sunshine (Western Day Surgery)",282,277,2670,30,218,9,1]
["Newlife IVF, Box Hill",1464,960,11257,117,1043,8,1]
["Number 1 Fertility, East Melbourne",2625,2593,29841,635,5738,11,2]
["Number 1 Fertility, Geelong",8,8,67,3,13,8,2]
["Reproductive Services, Royal Women Hospital (Melbourne IVF)",1284,1254,10476,119,1034,8,1]
[]
["Aggregated total",{"$f":"SUM(B101:B119)","v":15971},{"$f":"SUM(C101:C119)","v":15217},162001,2075,19219,177,19]
[]
["Use of eggs"]
[]
["Table 2.3 Number of ART cycles using fresh eggs, 2020-21 financial year"]
[]
["Table 2.3a Attempted fertilisation,  Victoria, 2020-21 financial year"]
[null,"No. of cycles with attempted fertilisation","% of cycles involving eggs treated with ICSI*","No. of  \ncycles with embryos formed*","No. of embryos formed"]
["Treatment site","All ages by treatment site"]
["Adora Fertility, Greensborough",1097,{"v":51.04831314086914,"d":"51.0"},1023,5527]
["Ballarat IVF, Ballarat",325,{"v":61.846153259277344,"d":"61.8"},307,1981]
["City Fertility Centre, Bundoora",180,{"v":71.66666412353516,"d":"71.7"},168,1247]
["City Fertility Centre, Melbourne",402,{"v":78.85572052001953,"d":"78.9"},378,2135]
["Genea, Melbourne",179,{"v":44.13407897949219,"d":"44.1"},170,975]
["Melbourne IVF, East Melbourne",3393,{"v":70.17388916015625,"d":"70.2"},3190,19622]
["Melbourne IVF, Mt Waverley",330,{"v":71.21212005615234,"d":"71.2"},305,1886]
["Monash IVF, Bendigo",75,{"v":64,"d":"64.0"},74,570]
["Monash IVF, Clayton (Monash IVF Monash Surgical Private Hospital)",1777,{"v":81.65447235107422,"d":"81.7"},1670,9772]
["Monash IVF, Geelong",317,{"v":91.16719055175781,"d":"91.2"},309,2118]
["Monash IVF, Mildura",54,{"v":70.37036895751953,"d":"70.4"},47,251]
["Monash IVF, Richmond (Monash IVF Epworth Hospital)",547,{"v":87.3857421875,"d":"87.4"},523,2913]
["Monash IVF, Sale (Central Wellington Health Services)",58,{"v":77.5862045288086,"d":"77.6"},54,288]
["Monash IVF, Sunshine (Western Day Surgery)",243,{"v":89.3004150390625,"d":"89.3"},226,1331]
["Newlife IVF, Box Hill",830,{"v":87.59036254882812,"d":"87.6"},779,4550]
["Number 1 Fertility, East Melbourne",1903,{"v":84.49816131591797,"d":"84.5"},1678,8849]
["Number 1 Fertility, Geelong",5,{"v":100,"d":"100.0"},4,26]
["Reproductive Services, Royal Women Hospital (Melbourne IVF)",1124,{"v":56.85053253173828,"d":"56.9"},1055,5244]
[]
["Aggregated total",{"$f":"SUM(B129:B147)","v":12839},{"v":73.58049774169922,"d":"73.6"},{"$f":"SUM(D129:D147)","v":11960},69285]
["Age group","All treatment sites by age group"]
["<35",4121,{"v":71.99708557128906,"d":"72.0"},3955,28873]
["35-39",4939,{"v":74.32678985595703,"d":"74.3"},4638,25855]
[">=40",3779,{"v":74.33183288574219,"d":"74.3"},3367,14557]
["Aggregated total",{"$f":"SUM(B150:B152)","v":12839},{"v":73.58049774169922,"d":"73.6"},{"$f":"SUM(D150:D152)","v":11960},69285]
["IVF: in vitro fertilisation. ICSI: intracytoplasmic sperm injection. "]
["* Fertilised eggs with two pronuclei "]
["** See note page x"]
[]
["Table 2.3b Number of ART cycles using fresh embryos after IVF/ICSI, 2020-21 financial year"]
[null,"No. of cycles  with embryos  transferred","No. of embryos transferred","No. of cycles with embryos frozen*","No. of cycles with all embryos frozen* ","No. of embryos frozen*"]
["Treatment site","All ages by treatment site"]
["Adora Fertility, Greensborough",759,858,440,124,1271]
["Ballarat IVF, Ballarat",42,43,240,211,796]
["City Fertility Centre, Bundoora",32,35,113,97,447]
["City Fertility Centre, Melbourne",208,223,242,133,711]
["Genea, Melbourne",102,110,95,36,302]
["Melbourne IVF, East Melbourne",1698,1788,2126,1087,7540]
["Melbourne IVF, Mt Waverley",214,221,206,51,749]
["Monash IVF, Bendigo",52,52,57,18,225]
["Monash IVF, Clayton (Monash IVF Monash Surgical Private Hospital)",711,808,1086,734,3258]
["Monash IVF, Geelong",120,123,231,154,810]
["Monash IVF, Mildura",39,40,37,7,92]
["Monash IVF, Richmond (Monash IVF Epworth Hospital)",226,247,359,239,1113]
["Monash IVF, Sale (Central Wellington Health Services)",42,51,27,9,80]
["Monash IVF, Sunshine (Western Day Surgery)",137,149,138,62,455]
["Newlife IVF, Box Hill",332,356,515,340,1745]
["Number 1 Fertility, East Melbourne",751,751,1193,740,4065]
["Number 1 Fertility, Geelong",0,0,4,4,16]
["Reproductive Services, Royal Women Hospital (Melbourne IVF)",705,711,537,188,1506]
[]
["Aggregated total",{"$f":"SUM(B161:B179)","v":6170},{"$f":"SUM(C161:C179)","v":6566},7646,4234,25181]
["Age group","All treatment sites by age group"]
["<35",2070,2118,2998,1586,12132]
["35-39",2385,2494,3070,1665,9333]
[">=40",1715,1954,1578,983,3716]
["Aggregated total",{"$f":"SUM(B182:B184)","v":6170},{"$f":"SUM(C182:C184)","v":6566},7646,4234,25181]
["* Embryos frozen may need to be suitable - i.e. of good quality and meeting freezing criteria."]
[]
["Table 2.4 Number of ART cycles using thawed eggs, 2020-21 financial year"]
[]
["Table 2.4a Attempted fertilisation, 2020-21 financial year"]
["Women using own eggs"]
[null,"No. of cycles with attempted fertilisation","% of cycles involving eggs treated with ICSI","No. of  \ncycles with embryos formed*","No. of embryos formed"]
["Treatment site","All ages by treatment site"]
["Ballarat IVF, Ballarat",1,{"v":100,"d":"100.0"},1,1]
["City Fertility Centre, Melbourne",4,{"v":100,"d":"100.0"},4,12]
["Genea, Melbourne",3,{"v":100,"d":"100.0"},3,5]
["Melbourne IVF, East Melbourne",69,{"v":100,"d":"100.0"},68,470]
["Melbourne IVF, Mt Waverley",2,{"v":100,"d":"100.0"},2,18]
["Monash IVF, Bendigo",1,{"v":100,"d":"100.0"},1,6]
["Monash IVF, Clayton (Monash IVF Monash Surgical Private Hospital)",29,{"v":100,"d":"100.0"},26,161]
["Monash IVF, Richmond (Monash IVF Epworth Hospital)",16,{"v":100,"d":"100.0"},14,72]
["Monash IVF, Sale (Central Wellington Health Services)",1,{"v":100,"d":"100.0"},1,6]
["Monash IVF, Sunshine (Western Day Surgery)",2,{"v":100,"d":"100.0"},2,8]
["Newlife IVF, Box Hill",9,{"v":100,"d":"100.0"},4,42]
["Number 1 Fertility, East Melbourne",21,{"v":100,"d":"100.0"},21,141]
["Reproductive Services, Royal Women Hospital (Melbourne IVF)",7,{"v":100,"d":"100.0"},6,24]
[]
[]
[]
[]
[]
[]
["Aggregated total",{"$f":"SUM(B194:B212)","v":165},{"v":100,"d":"100.0"},{"$f":"SUM(D194:D212)","v":153},966]
["Age group","All Treatment sites by age group"]
["<35",50,{"v":50,"d":"50.0"},46,308]
["35-39",41,{"v":41,"d":"41.0"},39,263]
[">=40",74,{"v":74,"d":"74.0"},68,395]
["Aggregated total",{"$f":"SUM(B215:B217)","v":165},{"v":100,"d":"100.0"},{"$f":"SUM(D215:D217)","v":153},966]
["Women using donor/partner eggs*"]
[null,"No. of cycles with attempted fertilisation","% of cycles involving eggs treated with ICSI","No. of  \ncycles with embryos formed*","No. of embryos formed"]
["Treatment site","All ages by treatment site"]
["Melbourne IVF, East Melbourne",9,{"v":100,"d":"100.0"},9,42]
["Melbourne IVF, Mt Waverley",1,{"v":100,"d":"100.0"},1,6]
["Monash IVF, Clayton (Monash IVF Monash Surgical Private Hospital)",3,{"v":100,"d":"100.0"},3,12]
["Monash IVF, Richmond (Monash IVF Epworth Hospital)",35,{"v":100,"d":"100.0"},35,163]
["Number 1 Fertility, East Melbourne",7,{"v":100,"d":"100.0"},6,25]
{"$rows_empty":14}
["Aggregated total",{"$f":"SUM(B222:B240)","v":55},{"v":100,"d":"100.0"},{"$f":"SUM(D222:D240)","v":54},248]
["Age group","All treatment sites by age group"]
["<35",3,{"v":100,"d":"100.0"},3,14]
["35-39",11,{"v":100,"d":"100.0"},11,44]
[">=40",41,{"v":100,"d":"100.0"},40,190]
["Aggregated total",{"$f":"SUM(B243:B245)","v":55},{"v":100,"d":"100.0"},{"$f":"SUM(D243:D245)","v":54},248]
["* Donor eggs include those imported from interstate or overseas."]
["** Fertilised eggs with two pronuclei "]
["*** see note page x"]
[]
[]
["Table 2.4b Number of ART cycles using thawed eggs, 2020-21 financial year"]
["Women using own eggs"]
[null,"No. of cycles  with embryos  transferred","No. of embryos transferred","No. of cycles with embryos frozen**","No. of cycles with all embryos frozen** ","No.\nof embryos\nfrozen**"]
["Treatment site","All ages by treatment site"]
["Ballarat IVF, Ballarat",0,0,3,3,9]
["City Fertility Centre, Bundoora",0,0,1,1,2]
["City Fertility Centre, Melbourne",4,4,1,0,1]
["Genea, Melbourne",3,3,1,0,1]
["Melbourne IVF, East Melbourne",60,65,54,13,148]
["Melbourne IVF, Mt Waverley",2,2,2,1,9]
["Monash IVF, Bendigo",1,1,1,0,1]
["Monash IVF, Clayton (Monash IVF Monash Surgical Private Hospital)",22,23,27,13,55]
["Monash IVF, Geelong",0,0,0,0,0]
["Monash IVF, Richmond (Monash IVF Epworth Hospital)",13,16,25,17,63]
["Monash IVF, Sale (Central Wellington Health Services)",1,1,0,0,0]
["Monash IVF, Sunshine (Western Day Surgery)",2,2,1,0,2]
["Newlife IVF, Box Hill",4,6,3,1,13]
["Number 1 Fertility, East Melbourne",19,19,16,2,46]
["Reproductive Services, Royal Women Hospital (Melbourne IVF)",3,3,0,0,0]
[]
[]
[]
[]
["Aggregated total",{"$f":"SUM(B256:B274)","v":134},{"$f":"SUM(C256:C274)","v":145},135,51,350]
["Age group","All treatment sites by age group"]
["<35",39,43,39,13,102]
["35-39",34,35,34,19,110]
[">=40",61,67,62,19,138]
["Aggregated Total",{"$f":"SUM(B277:B279)","v":134},{"$f":"SUM(C277:C279)","v":145},135,51,350]
["Women using donor/partner eggs*"]
[null,"No. of cycles  with embryos  transferred","No. of embryos transferred","No. of cycles with embryos frozen**","No. of cycles with ALL embryos frozen** ","No.\nof embryos\nfrozen**"]
["Treatment site","All ages by treatment site"]
["Melbourne IVF, East Melbourne",9,9,5,0,9]
["Melbourne IVF, Mt Waverley",1,1,1,0,3]
["Monash IVF, Clayton (Monash IVF Monash Surgical Private Hospital)",2,2,1,0,3]
["Monash IVF, Richmond (Monash IVF Epworth Hospital)",26,27,22,3,40]
["Number 1 Fertility, East Melbourne",6,6,3,1,5]
{"$rows_empty":14}
["Aggregated total",{"$f":"SUM(B284:B302)","v":44},{"$f":"SUM(C284:C302)","v":45},32,4,60]
["Age group","All treatment sites by age group"]
["<35",2,2,2,0,4]
["35-39",10,10,6,1,14]
[">=40",32,33,24,3,42]
["Aggregated Total",{"$f":"SUM(B305:B307)","v":44},{"$f":"SUM(C305:C307)","v":45},32,4,60]
["* Donor eggs include those imported from interstate or overseas."]
["** Constitutes a lab-only cycle where eggs are thawed, fertilised and all resulting embryos are frozen. Embryos frozen may need to be suitable - i.e. of good quality and meeting freezing criteria."]
[]
["Use of embryos"]
[]
["Table 2.5 Number of ART cycles with fresh embryos transferred, 2020-21 financial year"]
["Figures do not include alll clinical pregnancies, only those with ultrasound scan available before the date on page x"]
[null,"No. of cycles with embryos transferred","% of single embryo transfer","No. of clinical pregnancies*","% clinical pregnancies per embryo transfer cycle"]
["Treatment site","All ages by treatment site"]
["Adora Fertility, Greensborough",759,{"v":86.9565200805664,"d":"87.0"},179,{"v":23.583662033081055,"d":"23.6"}]
["Ballarat IVF, Ballarat",42,{"v":97.61904907226562,"d":"97.6"},6,{"v":14.285714149475098,"d":"14.3"}]
["City Fertility Centre, Bundoora",32,{"v":90.625,"d":"90.6"},7,{"v":21.875,"d":"21.9"}]
["City Fertility Centre, Melbourne",209,{"v":92.82296752929688,"d":"92.8"},51,{"v":24.401914596557617,"d":"24.4"}]
["Genea, Melbourne",102,{"v":92.1568603515625,"d":"92.2"},25,{"v":24.509803771972656,"d":"24.5"}]
["Melbourne IVF, East Melbourne",1698,{"v":94.69964599609375,"d":"94.7"},608,{"v":35.80683135986328,"d":"35.8"}]
["Melbourne IVF, Mt Waverley",214,{"v":96.72897338867188,"d":"96.7"},75,{"v":35.046730041503906,"d":"35.0"}]
["Monash IVF, Bendigo",52,{"v":100,"d":"100.0"},20,{"v":38.46154022216797,"d":"38.5"}]
["Monash IVF, Clayton (Monash IVF Monash Surgical Private Hospital)",712,{"v":86.37640380859375,"d":"86.4"},207,{"v":29.073034286499023,"d":"29.1"}]
["Monash IVF, Geelong",120,97.5,38,{"v":31.66666603088379,"d":"31.7"}]
["Monash IVF, Mildura",39,{"v":97.43589782714844,"d":"97.4"},9,{"v":23.076923370361328,"d":"23.1"}]
["Monash IVF, Richmond (Monash IVF Epworth Hospital)",227,{"v":90.7489013671875,"d":"90.7"},66,{"v":29.07489013671875,"d":"29.1"}]
["Monash IVF, Sale (Central Wellington Health Services)",42,{"v":78.57142639160156,"d":"78.6"},9,{"v":21.428571701049805,"d":"21.4"}]
["Monash IVF, Sunshine (Western Day Surgery)",137,{"v":91.24087524414062,"d":"91.2"},47,{"v":34.30656814575195,"d":"34.3"}]
["Newlife IVF, Box Hill",333,{"v":92.79279327392578,"d":"92.8"},103,{"v":30.930931091308594,"d":"30.9"}]
["Number 1 Fertility, East Melbourne",751,{"v":100,"d":"100.0"},221,{"v":29.42742919921875,"d":"29.4"}]
["Reproductive Services, Royal Women Hospital (Melbourne IVF)",705,{"v":99.14893341064453,"d":"99.1"},160,{"v":22.695035934448242,"d":"22.7"}]
[]
[]
["Aggregated total",{"$f":"SUM(B318:B336)","v":6174},{"v":93.58600616455078,"d":"93.6"},{"$f":"SUM(D318:D336)","v":1831},{"v":29.65662384033203,"d":"29.7"}]
["Age group","All Treatment sites by age group"]
["<35",2073,{"v":97.68451690673828,"d":"97.7"},802,{"v":38.68789291381836,"d":"38.7"}]
["35-39",2386,{"v":95.43168640136719,"d":"95.4"},742,{"v":31.098072052001953,"d":"31.1"}]
[">=40",1715,{"v":86.06414031982422,"d":"86.1"},287,{"v":16.73469352722168,"d":"16.7"}]
["Aggregated Total",{"$f":"SUM(B339:B341)","v":6174},{"v":93.58600616455078,"d":"93.6"},{"$f":"SUM(D339:D341)","v":1831},{"v":29.65662384033203,"d":"29.7"}]
["* see note page x"]
[]
["Table 2.6 Number of ART cycles with fresh embryo formed from thawed eggs, 2020-21 financial year"]
["Figures do not include alll clinical pregnancies, only those with ultrasound scan available before the date on page x"]
["Treatment site","No. of cycles with embryos transferred","% of single embryo transfer","No. of clinical pregnancies*","% clinical pregnancies per embryo transfer cycle"]
["Adora Fertility, Greensborough",3,{"v":66.66666412353516,"d":"66.7"},0,{"v":0,"d":"0.0"}]
["City Fertility Centre, Bundoora",1,{"v":100,"d":"100.0"},1,{"v":100,"d":"100.0"}]
["City Fertility Centre, Melbourne",4,{"v":100,"d":"100.0"},1,{"v":25,"d":"25.0"}]
["Genea, Melbourne",5,{"v":100,"d":"100.0"},0,{"v":0,"d":"0.0"}]
["Melbourne IVF, East Melbourne",80,{"v":93.75,"d":"93.8"},32,{"v":40,"d":"40.0"}]
["Melbourne IVF, Mt Waverley",3,{"v":100,"d":"100.0"},2,{"v":66.66666412353516,"d":"66.7"}]
["Monash IVF, Bendigo",1,{"v":100,"d":"100.0"},1,{"v":100,"d":"100.0"}]
["Monash IVF, Clayton (Monash IVF Monash Surgical Private Hospital)",26,{"v":96.15384674072266,"d":"96.2"},12,{"v":46.153846740722656,"d":"46.2"}]
["Monash IVF, Richmond (Monash IVF Epworth Hospital)",40,{"v":90,"d":"90.0"},14,{"v":35,"d":"35.0"}]
["Monash IVF, Sale (Central Wellington Health Services)",2,{"v":100,"d":"100.0"},0,{"v":0,"d":"0.0"}]
["Monash IVF, Sunshine (Western Day Surgery)",3,{"v":100,"d":"100.0"},1,{"v":33.33333206176758,"d":"33.3"}]
["Newlife IVF, Box Hill",6,{"v":66.66666412353516,"d":"66.7"},4,{"v":66.66666412353516,"d":"66.7"}]
["Number 1 Fertility, East Melbourne",37,{"v":100,"d":"100.0"},8,{"v":21.62162208557129,"d":"21.6"}]
["Reproductive Services, Royal Women Hospital (Melbourne IVF)",3,{"v":100,"d":"100.0"},0,{"v":0,"d":"0.0"}]
[]
[]
[]
[]
[]
["Aggregated total",{"$f":"SUM(B348:B366)","v":214},{"v":93.92523193359375,"d":"93.9"},{"$f":"SUM(D348:D366)","v":76},{"v":35.51401901245117,"d":"35.5"}]
["* see note page x"]
["Note: \nThe average % of single embryo transfer was x %\n% clinical pregnancies per embryo transfer for total"]
[]
["Table 2.7 Number of ART cycles with embryo thawed, 2020-21 financial year"]
["Figures do not include alll clinical pregnancies, only those with ultrasound scan available before the date on page x"]
[null,"No. of cycles with embryos thawed","No. of embryos thawed","No. of cycles with embryos transferred","% of single embryo transfer","No. of embryos transferred","No. of clinical pregnancies*","% clinical pregnancies per embryo transfer cycle"]
["Treatment site","All ages by treatment site"]
["Adora Fertility, Greensborough",721,796,686,{"v":97.2303237915039,"d":"97.2"},705,220,{"v":32.069969177246094,"d":"32.1"}]
["Ballarat IVF, Ballarat",399,429,398,{"v":99.49748992919922,"d":"99.5"},400,136,{"v":34.17085266113281,"d":"34.2"}]
["City Fertility Centre, Bundoora",200,214,194,{"v":97.93814086914062,"d":"97.9"},198,67,{"v":34.53608322143555,"d":"34.5"}]
["City Fertility Centre, Melbourne",351,389,336,{"v":94.04762268066406,"d":"94.0"},356,105,{"v":31.25,"d":"31.3"}]
["Genea, Melbourne",123,128,121,{"v":98.34710693359375,"d":"98.3"},123,38,{"v":31.404958724975586,"d":"31.4"}]
["Melbourne IVF, East Melbourne",2780,3127,2683,{"v":94.52105712890625,"d":"94.5"},2830,1014,{"v":37.793514251708984,"d":"37.8"}]
["Melbourne IVF, Mt Waverley",262,292,256,{"v":95.703125,"d":"95.7"},267,95,{"v":37.109375,"d":"37.1"}]
["Monash IVF, Bendigo",105,107,105,{"v":100,"d":"100.0"},105,30,{"v":28.571428298950195,"d":"28.6"}]
["Monash IVF, Clayton (Monash IVF Monash Surgical Private Hospital)",1323,1447,1305,{"v":95.17241668701172,"d":"95.2"},1368,563,{"v":43.141761779785156,"d":"43.1"}]
["Monash IVF, Geelong",371,401,370,{"v":95.40540313720703,"d":"95.4"},387,127,{"v":34.32432556152344,"d":"34.3"}]
["Monash IVF, Mildura",39,40,39,{"v":100,"d":"100.0"},39,10,{"v":25.64102554321289,"d":"25.6"}]
["Monash IVF, Richmond (Monash IVF Epworth Hospital)",611,665,600,{"v":95.33333587646484,"d":"95.3"},628,228,{"v":38,"d":"38.0"}]
["Monash IVF, Sale (Central Wellington Health Services)",28,35,28,{"v":78.57142639160156,"d":"78.6"},34,4,{"v":14.285714149475098,"d":"14.3"}]
["Monash IVF, Sunshine (Western Day Surgery)",89,106,85,{"v":88.23529052734375,"d":"88.2"},95,34,{"v":40,"d":"40.0"}]
["Newlife IVF, Box Hill",527,556,516,{"v":96.51162719726562,"d":"96.5"},534,223,{"v":43.2170524597168,"d":"43.2"}]
["Number 1 Fertility, East Melbourne",1208,1221,1202,{"v":100,"d":"100.0"},1202,479,{"v":39.850250244140625,"d":"39.9"}]
["Reproductive Services, Royal Women Hospital (Melbourne IVF)",812,843,804,{"v":99.00497436523438,"d":"99.0"},812,199,{"v":24.751243591308594,"d":"24.8"}]
[]
[]
["Aggregated total",{"$f":"SUM(B375:B393)","v":9949},{"$f":"SUM(C375:C393)","v":10796},9728,{"v":96.35073852539062,"d":"96.4"},10083,3572,{"v":36.71875,"d":"36.7"}]
["Age group","All treatment sites by age group"]
["<35",3851,4147,3783,{"v":96.82791137695312,"d":"96.8"},3903,1557,{"v":41.15781021118164,"d":"41.2"}]
["35-39",4057,4343,3964,{"v":96.99797821044922,"d":"97.0"},4083,1463,{"v":36.90716552734375,"d":"36.9"}]
[">=40",2041,2306,1981,{"v":94.14437103271484,"d":"94.1"},2097,552,{"v":27.864715576171875,"d":"27.9"}]
["Aggregated Total",{"$f":"SUM(B396:B398)","v":9949},{"$f":"SUM(C396:C398)","v":10796},9728,{"v":96.35073852539062,"d":"96.4"},10083,3572,{"v":36.71875,"d":"36.7"}]
[]
["* see note page x"]
["No GIFT cycles in 2020-21"]

{"sheet":"Section 3 - AI","index":3,"n_rows":57,"n_cols":3,"rows_kept":57,"merged":[[2,4,2,8],[6,0,6,2],[32,0,32,2]]}
["SECTION 3"]
["Artificial insemination (AI), 2020-21 financial year"]
["This section provides detail of AI treatment and clinical pregnancies for the 2020-21 financial year."]
["This data only includes AI insemination at registered ART providers and does not include AI at private doctor's facilities."]
[]
["Table 3.1 AI with partner sperm for stimulated/unstimulated cycles, 2020-21 financial year"]
["All ages"]
["Treatment site","No. of cycles with AI performed","No. of clinical pregnancies"]
["Ballarat IVF, Ballarat",12,0]
["City Babies, Richmond",249,28]
["City Fertility Centre, Bundoora",12,3]
["City Fertility Centre, Melbourne",37,6]
["Genea, Melbourne",15,0]
["Melbourne IVF, East Melbourne",426,46]
["Melbourne IVF, Mt Waverley",20,0]
["Monash IVF, Bendigo",9,1]
["Monash IVF, Clayton (Monash IVF Monash Surgical Private Hospital)",177,18]
["Monash IVF, Geelong",65,5]
["Monash IVF, Mildura",11,4]
["Monash IVF, Richmond (Monash IVF Epworth Hospital)",99,9]
["Monash IVF, Sunshine (Western Day Surgery)",1,0]
["Number 1 Fertility, East Melbourne",309,15]
["Reproductive Services, Royal Women Hospital (Melbourne IVF)",19,5]
[]
[]
[]
[]
["Aggregated total",{"$f":"SUM(B9:B27)","v":1461},{"$f":"SUM(C9:C27)","v":140}]
["AI: artificial insemination. FSH: follicle stimulating hormone"]
[]
[]
["Table 3.2 AI with donor sperm for stimulated/unstimulated cycles, 2020-21 financial year"]
["All ages"]
["Treatment site","No. of cycles with AI performed","No. of clinical pregnancies"]
["Ballarat IVF, Ballarat",48,4]
["City Fertility Centre, Bundoora",29,4]
["City Fertility Centre, Melbourne",153,12]
["Genea, Melbourne",4,0]
["Melbourne IVF, East Melbourne",276,38]
["Melbourne IVF, Mt Waverley",22,2]
["Monash IVF, Bendigo",5,1]
["Monash IVF, Clayton (Monash IVF Monash Surgical Private Hospital)",45,11]
["Monash IVF, Geelong",15,4]
["Monash IVF, Mildura",1,0]
["Monash IVF, Richmond (Monash IVF Epworth Hospital)",28,2]
["Newlife IVF, Box Hill",30,5]
["Number 1 Fertility, East Melbourne",8,0]
["Reproductive Services, Royal Women Hospital (Melbourne IVF)",1,1]
[]
[]
[]
[]
[]
["Aggregated total",{"$f":"SUM(B35:B53)","v":665},{"$f":"SUM(C35:C53)","v":84}]
[]
["AI: artificial insemination. FSH: follicle stimulating hormone"]
["* Number of clinical pregnancies only included those reported by the date on page x. "]

{"sheet":"Section 4 Donor","index":4,"n_rows":77,"n_cols":9,"rows_kept":77,"merged":[[14,0,14,3],[21,0,22,0],[21,1,21,2],[21,4,21,6],[21,7,21,8],[37,0,38,0],[37,1,37,3],[37,4,37,6],[39,0,39,6],[50,0,50,6],[65,0,66,0],[65,1,65,4],[65,5,66,6]]}
["SECTION 4"]
["Donor ART treatment, 2020-21 financial year"]
["For use of AI, refer to section 3. For storage of donor sperm, refer to section 7"]
[]
["Table 4.1 Number of recipients and clinical pregnancies by donation type, 2020-21 financial year"]
["This table includes cycles where embryo(s) was transferred. Figures do not include all clinical pregnancies, only those with ultrasound scan available before date on page x."]
["Donation type (all treatment sites)","No. of recipients\ntreated","No. of cycles with embryos transferred","No. of clinical\npregnancies*","% clinical\npregnancies per embryo transfer cycle"]
["Donor embryo",106,143,47,{"v":32.86713409423828,"d":"32.9"}]
["Donor/partner eggs"]
[" --- Fresh egg",244,87,38,{"v":43.67816162109375,"d":"43.7"}]
[" --- Thawed egg",66,43,17,{"v":39.53488540649414,"d":"39.5"}]
[" --- Embryos from donated eggs",285,388,132,{"v":34.0206184387207,"d":"34.0"}]
["Donor sperm*",187,237,95,{"v":40.084388732910156,"d":"40.1"}]
["Aggregated total**",{"$f":"SUM(B8:B13)","v":888},{"$f":"SUM(C8:C13)","v":898},329,{"$f":"IF(C14=0,0,(D14/C14)*100)","v":{"v":36.6369710467706,"d":"36.6"}}]
[]
["** Excluded AI using donor sperm. Refer to table 3.2"]
["** Some recipients had both donated eggs and sperm."]
[]
[]
["Table 4.2 Number of egg, sperm and embryo donors used in treatment by method of recruitment, 2020-21 financial year*"]
[]
["Registered ART provider (all sites)","No. egg donors",null,null,"No. sperm donors",null,null,"No. embryo donors"]
[null,"Recipient recruited","Overseas egg bank recruited","Clinic \nrecruited","Recipient recruited","Overseas sperm bank recruited","Clinic \nrecruited","Recipient recruited","Clinic \nrecruited"]
["Adora Fertility ","n/a","n/a","n/a","n/a","n/a","n/a","n/a","n/a"]
["Ballarat IVF",14,"n/a",4,5,"n/a",25,2,5]
["City Babies","n/a","n/a","n/a","n/a","n/a","n/a","n/a","n/a"]
["City Fertility Centre",75,0,14,2,0,85,0,2]
["Genea",3,0,0,2,7,0,1,0]
["Melbourne IVF, including Reproductive Services, RWH",69,0,5,71,0,105,24,21]
["Monash IVF",80,33,2,28,4,137,15,11]
["Newlife IVF",18,0,0,14,3,11,1,0]
["Number 1 Fertility",28,10,"n/a",28,"n/a",10,0,"n/a"]
["Aggregated total",287,43,25,150,14,373,43,39]
["*  Donors may include commissioning couples or individuals entering into surrogacy arrangements"]
[]
["Table 4.3 Number of recipients and treatment cycles with donor/partner eggs, 2020-21 financial year"]
[]
["Registered ART provider (all sites)","No. recipients commencing treatment\nwith donor/partner eggs",null,null,"No. of cycles commenced using\ndonor/partner eggs"]
[null,"Recipient recruited","Overseas egg bank recruited","Clinic \nrecruited","Recipient recruited","Overseas egg bank recruited","Clinic \nrecruited"]
["FRESH"]
["Adora Fertility ","n/a","n/a","n/a","n/a","n/a","n/a"]
["Ballarat IVF",9,"n/a",3,12,"n/a",4]
["City Babies","n/a","n/a","n/a","n/a","n/a","n/a"]
["City Fertility Centre",44,0,12,72,0,12]
["Genea",3,0,0,3,0,0]
["Melbourne IVF, including Reproductive Services, RWH",97,0,0,140,0,0]
["Monash IVF",74,0,2,86,0,2]
["Newlife IVF",11,0,0,11,0,0]
["Number 1 Fertility",25,"n/a","n/a",30,"n/a","n/a"]
["Aggregated total",263,0,17,354,0,18]
["THAWED"]
["Adora Fertility ","n/a","n/a","n/a","n/a","n/a","n/a"]
["Ballarat IVF",0,"n/a",0,0,"n/a",0]
["City Babies","n/a","n/a","n/a","n/a","n/a","n/a"]
["City Fertility Centre",3,0,2,2,0,3]
["Genea",0,0,0,0,0,0]
["Melbourne IVF, including Reproductive Services, RWH",7,0,5,7,0,5]
["Monash IVF",5,35,0,5,40,0]
["Newlife IVF",13,0,0,17,0,0]
["Number 1 Fertility",24,11,"n/a",48,11,"n/a"]
["Aggregated total",52,46,7,79,51,8]
[]
[]
["Table 4.4 Relationship status of recipients of donor sperm treatment, 2020-21 financial year"]
[]
["Registered ART provider (all sites)","Relationship status of woman receiving donor sperm treatment"]
[null,"Single","Same-sex","Heterosexual","Other"]
["Adora Fertility ","n/a","n/a","n/a","n/a"]
["Ballarat IVF",37,15,12,0]
["City Babies","n/a","n/a","n/a","n/a"]
["City Fertility Centre",134,170,19,0]
["Genea",6,1,2,0]
["Melbourne IVF, including Reproductive Services, RWH",359,216,86,0]
["Monash IVF",270,101,68,0]
["Newlife IVF",44,30,10,0]
["Number 1 Fertility",16,15,8,0]
["Aggregated total",866,548,205,0]

{"sheet":"Section 5 - Surrogacy","index":5,"n_rows":28,"n_cols":4,"rows_kept":28,"merged":[[26,0,26,4]]}
["SECTION 5"]
["Surrogacy, 2020-21 financial year"]
[]
["Table 5 Surrogacy cycles and clinical pregnancies, 2020-21 financial year"]
["This table includes cycles where embryo(s) was transferred to a surrogate woman during the financial year. Figures do not include all clinical pregnancies, only those with ultrasound scan available before the date on page x."]
["Treatment site","No. of surrogate women","No. of cycles with\nembryos transferred","No. of clinical\npregnancies"]
["City Fertility Centre, Melbourne",2,2,2]
["Melbourne IVF, East Melbourne",8,12,5]
["Monash IVF, Bendigo",1,1,0]
["Monash IVF, Clayton (Monash IVF Monash Surgical Private Hospital)",10,13,6]
["Monash IVF, Geelong",1,4,1]
["Monash IVF, Richmond (Monash IVF Epworth Hospital)",8,11,7]
["Monash IVF, Sunshine (Western Day Surgery)",1,1,1]
["Newlife IVF, Box Hill",3,4,1]
["Number 1 Fertility, East Melbourne",8,11,4]
{"$rows_empty":10}
["Aggregated total",{"$f":"SUM(B7:B25)","v":42},{"$f":"SUM(C7:C25)","v":59},27]
["* see note page 27"]
["Example note: 100% surrogacy cycles involving the transfer of an embryo were single embryo transfers"]

{"sheet":"Section 6 - Storage of gametes","index":6,"n_rows":30,"n_cols":6,"rows_kept":30}
["SECTION 6"]
["Storage of gametes, 2020-21 financial year"]
[]
["Table 6.1 Storage of sperm, ovarian tissue, eggs and embryos, 2020-21 financial year"]
[]
["Registered ART provider (all sites)","No. of patients with sperm in storage as at 30 June 2021","No. of patients with ovarian tissue in storage as at 30 June 2021","No. of patients with eggs in storage as at 30 June 2021","No. of patients with embryos in storage as at 30 June 2021","No. of embryos in storage as at 30 June 2021"]
["Adora Fertility ",172,"n/a",12,1004,2923]
["Ballarat IVF",200,"n/a",38,547,1698]
["City Babies","n/a","n/a","n/a","n/a","n/a"]
["City Fertility Centre",532,"n/a",162,1155,3646]
["Genea",28,0,17,61,179]
["Melbourne IVF, including Reproductive Services, RWH",1738,462,2413,6551,23690]
["Monash IVF",1814,76,1349,5190,17307]
["Newlife IVF",119,0,94,517,2040]
["Number 1 Fertility",257,3,891,1611,5456]
["Aggregated total",4860,541,4976,16636,56939]
[]
["Table 6.2 Storage of donor sperm, 2020-21 financial year"]
[]
["Registered ART provider (all sites)","No. of donors whose sperm is stored and available for donor treatment at 1 July 2020 (start of period)","New donors recruited during reporting financial year"]
["Adora Fertility ","n/a","n/a"]
["Ballarat IVF",36,0]
["City Babies","n/a","n/a"]
["City Fertility Centre",65,42]
["Genea",10,0]
["Melbourne IVF, including Reproductive Services, RWH",222,19]
["Monash IVF",35,20]
["Newlife IVF",9,32]
["Number 1 Fertility",0,1]
["Aggregated total",377,114]

{"sheet":"Section - 7 PGT","index":7,"n_rows":44,"n_cols":6,"rows_kept":44,"merged":[[6,0,6,5],[17,0,17,5],[28,0,28,5]]}
["SECTION 7"]
["Preimplantation genetic testing, 2020-21 financial year"]
[]
["Table 7 Preimplantation testing (PGT), 2020-21 financial year"]
[]
["Registered ART provider (all sites)","No. of women in treatment","No. of embryos\ntested*","No. of embryos genetically-suitable\nfor transfer","No. of women in treatment**","No. of genetically-suitable\nembryos transferred"]
["Pre-implantation testing for single gene disorders (PGT-M)"]
["Adora Fertility ","n/a","n/a","n/a","n/a","n/a"]
["Ballarat IVF","n/a","n/a","n/a",0,0]
["City Babies","n/a","n/a","n/a","n/a","n/a"]
["City Fertility Centre",12,34,15,7,12]
["Genea",2,14,2,2,2]
["Melbourne IVF, including Reproductive Services, RWH",131,828,336,133,186]
["Monash IVF",54,231,75,49,66]
["Newlife IVF",16,112,20,9,13]
["Number 1 Fertility",16,107,30,13,14]
["Aggregated total",231,1326,478,213,293]
["Pre-implantation testing for aneuploidy (incorrect chromasomal numbers, PGT-A)"]
["Adora Fertility ","n/a","n/a","n/a","n/a","n/a"]
["Ballarat IVF","n/a","n/a","n/a",1,3]
["City Babies","n/a","n/a","n/a","n/a","n/a"]
["City Fertility Centre",73,160,116,66,77]
["Genea",39,144,83,40,61]
["Melbourne IVF, including Reproductive Services, RWH",609,2401,1147,450,622]
["Monash IVF",570,1704,917,382,480]
["Newlife IVF",218,873,366,124,162]
["Number 1 Fertility",595,2111,931,403,500]
["Aggregated total",2104,7393,3560,1466,1905]
["Non-invasive pre-implantation testing for aneuploidy (NIPGT***)"]
["Adora Fertility ","n/a","n/a","n/a","n/a","n/a"]
["Ballarat IVF","n/a","n/a","n/a",0,0]
["City Babies","n/a","n/a","n/a","n/a","n/a"]
["City Fertility Centre","n/a","n/a","n/a","n/a","n/a"]
["Genea",0,0,0,0,0]
["Melbourne IVF, including Reproductive Services, RWH","n/a","n/a","n/a","n/a","n/a"]
["Monash IVF",105,227,53,85,101]
["Newlife IVF",0,0,0,0,0]
["Number 1 Fertility","n/a","n/a","n/a","n/a","n/a"]
["Aggregated total",105,227,53,85,101]
["PGT-M: preimplantation genetic testing for single gene disorders; PGT-A: preimplantation genetic screening for aneuploidy"]
["NIPGT: non-invasive preimplantation genetic testing for aneuploidy"]
["* Either fresh embryos or thawed frozen embryos may be tested. Some patients will have some fresh and thawed frozen embryos tested."]
["** Women may have treatment using embryos tested and stored in a prior year"]
["*** Non-invasive PGT. Note that some women will have some embryos bipsied and some tested by NI-PGT"]

{"sheet":"Treatment Cycles","index":8,"n_rows":28,"n_cols":14,"rows_kept":28}
["Treatment Cycles "]
[]
["Figure 7, Number of patients and treatment cycles per financial year, 2008-09 to 2019-20"]
[null,"2008/09","2009/10","2010/11","2011/12","2012/13","2013/14","2014/15","2015/16","2016/17","2017/18","2018/19","2019/20","2020/21"]
["Number of patients",9262,9525,9685,10252,10598,11113,11317,12182,12885,12378,12871,13041,15590]
["< 35 years",3387,3426,3515,3695,3893,4165,4281,4500,4608,4588,4729,4847,5795]
["35-39 years",3520,3585,3523,3758,3780,3954,4058,4425,4817,4767,5172,5185,6191]
["≥ 40 years",2355,2514,2647,2799,2925,2994,2978,3257,3460,3023,3271,3009,3604]
["< 35 years",{"v":36.56877564240985,"d":"36.6"},{"v":35.968503937007874,"d":"36.0"},{"v":36.293236964377904,"d":"36.3"},{"$f":"E6/E5*100","v":{"v":36.04174795161919,"d":"36.0"}},{"v":36.73334591432346,"d":"36.7"},{"v":37.47862863313237,"d":"37.5"},{"v":37.8280463020235,"d":"37.8"},{"v":36.93974716795272,"d":"36.9"},{"v":35.76251455180442,"d":"35.8"},{"v":37.06576183551462,"d":"37.1"},{"v":36.741512298583984,"d":"36.7"},{"v":37.19950866699219,"d":"37.2"},37.2]
["35-39 years",{"v":38.00475059382423,"d":"38.0"},{"v":37.637795275590555,"d":"37.6"},{"v":36.375838926174495,"d":"36.4"},{"$f":"E7/E5*100","v":{"v":36.65626219274288,"d":"36.7"}},{"v":35.667107001321,"d":"35.7"},{"v":35.5799514082606,"d":"35.6"},{"v":35.857559423875585,"d":"35.9"},{"v":36.324084715153504,"d":"36.3"},{"v":37.38455568490493,"d":"37.4"},{"v":38.51187590887057,"d":"38.5"},{"v":40.18335723876953,"d":"40.2"},39.8,39.7]
["≥ 40 years",{"v":25.426473763765927,"d":"25.4"},{"v":26.393700787401574,"d":"26.4"},{"v":27.3309241094476,"d":"27.3"},{"$f":"E8/E5*100","v":{"v":27.301989855637927,"d":"27.3"}},{"v":27.599547084355542,"d":"27.6"},{"v":26.94141995860704,"d":"26.9"},{"v":26.31439427410091,"d":"26.3"},{"v":26.736168116893776,"d":"26.7"},{"v":26.85292976329065,"d":"26.9"},{"v":24.4223622556148,"d":"24.4"},{"v":25.413721084594727,"d":"25.4"},23.1,23.1]
[]
["Number of cycles",17687,18530,18057,19361,19847,20632,20585,22488,24009,23042,23586,23509,29760]
{"$rows_empty":7}
["Note:"]
["AI was not report for 2008/09"]
["2008/09, 2009/10, 2010/11, 2011/12, 2012/13, 2013/14, 2014/15, 2015/16, 2016/17, 2017/18, 2018/19, 2019/20 data were from the final outcome data"]
["2020/21 data were from the treatment data "]
[]
[]
[]
["Transposed table from figure source data can be found on page 32 of the annual report "]

{"sheet":"Donor Registers","index":9,"n_rows":24,"n_cols":6,"rows_kept":24,"merged":[[7,0,7,1],[9,0,9,3],[21,0,21,1],[23,0,23,4]]}
["Donor Registers"]
[]
[]
["Clinic notifications of births to the Central Register – year ending 30 June 2021 "]
["Clinic notifications of births","From sperm donation ","From egg donation ","From both sperm & egg or embryo donation","Total "]
["From 1 July 2020 to 30 June 2021",547,94,32,673]
[]
["Central Register"]
[]
["Applications to the Central Register",{"$nulls":3},71]
[]
["Donors added to the Central Register in 2020-21 financial year "]
["Donors on Central Register by type","Sperm donor*","Egg donor*","Total "]
["Donors added in 2020-21",149,130,279]
["Total donors at 30 June 2021",{"v":2140,"d":"2,140"},{"v":2235,"d":"2,235"},{"v":4375,"d":"4,375"}]
["*NOTE: includes embryo donors – embryo donors are currently recorded separately as sperm donor and egg donor"]
[]
["Total records on the Central Register"]
["Number of records on the Central Register","Donors","Donor-conceived people","Recipient parents"]
["Total at 30 June 2021",{"v":4375,"d":"4,375"},{"v":12244,"d":"12,244"},{"v":15505,"d":"15,505"}]
[]
["Voluntray Register"]
[]
["Applications to the Voluntary Register",{"$nulls":4},94]

{"sheet":"Import and Export","index":10,"n_rows":33,"n_cols":5,"rows_kept":33,"merged":[[3,0,4,0],[3,1,3,2],[3,3,3,4],[4,1,4,2],[4,3,4,4],[7,0,7,2],[19,1,22,1],[19,2,22,2],[19,3,22,3],[19,4,22,4],[19,5,21,5],[22,0,23,0]]}
["Import and Export"]
[]
[]
["Application","Individual",null,"Class"]
[null,"Applications",null,"applications"]
[null,"Import","Export","Import","Export"]
["Total received",86,47,35,0]
["Status by donated embryos / gamete type"]
["Donor sperm",43,19,18,"–"]
["Approved",36,18,18,"–"]
["Withdrawn",5,"–","–","–"]
["Not approved","–","–","–","–"]
["Pending [1]",1,1,"–","–"]
[]
["Donor eggs",10,3,17,"–"]
["Approved",6,2,17,"–"]
["Withdrawn",2,1,"–","–"]
["Not approved","–","–","–","–"]
["Pending",2,"–","–","–"]
[null,33,25,"–","–"]
[]
["Embryos formed using"]
["donor sperm and eggs"]
[]
["Approved",18,20,"–","–"]
["Withdrawn",3,1,"–","–"]
["Not approved",3,"–","–","–"]
["Pending",8,4,"–","–"]
[]
[]
[]
[]
["[1] Pending indicates application incomplete or further information required from the applicant or their ART provider."]